bitfinex-derivatives/quotes_BTCF0:USTF0_20250313
["timestamp","ask_amount","ask_price","bid_price","bid_amount"]
[1741866128076,0.0908,82876.0,82875.0,0.1206853]
[1741866128373,0.01264964,82879.0,82878.0,0.120681]
[1741866128675,0.00018102,82882.0,82881.0,0.1206766]
[1741866129071,0.0423,82899.0,82896.0,0.1809784]
[1741866129072,0.1206538,82897.0,82896.0,0.1809784]
[1741866129278,0.13350065,82897.0,82896.0,0.1809784]
[1741866129872,0.13350015,82897.0,82896.0,0.1809784]
[1741866130072,0.1206533,82897.0,82896.0,0.1809784]
[1741866130872,0.1216533,82897.0,82896.0,0.1809784]
[1741866131071,0.13410257,82897.0,82896.0,0.1809784]
[1741866131670,0.13510257,82897.0,82896.0,0.1809784]
[1741866133271,0.13310257,82897.0,82896.0,0.1809784]
[1741866133875,0.01244927,82897.0,82888.0,0.00018102]
[1741866134182,0.120662,82891.0,82890.0,0.1623635]
[1741866134379,0.1206588,82894.0,82893.0,0.180985]
[1741866134584,0.1206588,82894.0,82893.0,0.265285]
[1741866135083,0.1206588,82894.0,82893.0,0.0843]
[1741866135381,0.1206649,82889.0,82888.0,0.12084432]
[1741866135569,0.1206649,82889.0,82888.0,0.00018102]
[1741866136280,0.1206649,82889.0,82888.0,0.00118102]
[1741866136484,0.1206649,82889.0,82888.0,0.12184742]
[1741866136679,0.1662649,82889.0,82888.0,0.20314742]
[1741866136881,0.0603317,82891.0,82888.0,0.08248102]
[1741866137081,0.1206554,82896.0,82895.0,0.1206547]
[1741866138084,0.2068554,82896.0,82895.0,0.1206547]
[1741866138271,0.2078554,82896.0,82895.0,0.1206547]
[1741866139885,0.2088554,82896.0,82895.0,0.1206547]
[1741866141584,0.2088554,82896.0,82895.0,0.1630547]
[1741866141983,0.2088554,82896.0,82895.0,0.0424]
[1741866142286,0.1206649,82889.0,82888.0,0.00018102]
[1741866142877,0.2034649,82889.0,82888.0,0.00018102]
[1741866143486,0.2034649,82889.0,82888.0,0.00118102]
[1741866143981,0.2034649,82889.0,82888.0,0.00218102]
[1741866148074,0.1206882,82873.0,82872.0,0.0397]
[1741866148487,0.2043882,82873.0,82872.0,0.0397]
[1741866149082,0.2043882,82873.0,82872.0,0.0457]
[1741866150181,0.2043882,82873.0,82872.0,0.006]
[1741866150182,0.21714301,82873.0,82872.0,0.006]
[1741866150586,0.21714301,82873.0,82872.0,0.011]
[1741866151580,0.21714301,82873.0,82872.0,0.1316897]
[1741866151985,0.21714301,82873.0,82872.0,0.2172897]
[1741866152879,0.05385481,82873.0,82872.0,0.2172897]
[1741866153085,0.13344301,82873.0,82872.0,0.2172897]
[1741866153287,0.0603413,82877.0,82872.0,0.0966]
[1741866153495,0.19373303,82877.0,82876.0,0.1206839]
[1741866153694,0.01270633,82877.0,82876.0,0.1206839]
[1741866153885,0.1206803,82879.0,82876.0,0.1206839]
[1741866154085,0.1206803,82879.0,82878.0,0.120681]
[1741866154693,0.1206803,82879.0,82878.0,0.205481]
[1741866154892,0.06051932,82881.0,82880.0,0.120678]
[1741866155086,0.07343395,82881.0,82880.0,0.120678]
[1741866155393,0.13377225,82881.0,82880.0,0.120678]
[1741866155783,0.01309565,82881.0,82878.0,0.1491397]
[1741866155989,0.1206795,82879.0,82878.0,0.0888]
[1741866156586,0.2042795,82879.0,82878.0,0.0888]
[1741866156783,0.2002795,82879.0,82878.0,0.004]
[1741866157085,0.2002795,82879.0,82860.0,0.0603534]
[1741866157293,0.1176999,82866.0,82865.0,0.1206987]
[1741866157491,0.0603492,82867.0,82855.0,0.21677905]
[1741866157691,0.1628999,82865.0,82856.0,0.0427]
[1741866157883,0.1588999,82865.0,82863.0,0.1207024]
[1741866158088,0.1588999,82865.0,82864.0,0.04288102]
[1741866158291,0.2016999,82865.0,82864.0,0.04288102]
[1741866158492,0.2016999,82865.0,82864.0,0.04888102]
[1741866158687,0.1976999,82865.0,82864.0,0.04888102]
[1741866159598,0.1976999,82865.0,82864.0,0.05488102]
[1741866159786,0.2176999,82865.0,82864.0,0.05488102]
[1741866159983,0.2176999,82865.0,82864.0,0.17558232]
[1741866160183,0.1748999,82865.0,82864.0,0.17558232]
[1741866160792,0.1748999,82865.0,82864.0,0.09188102]
[1741866160998,0.1758999,82865.0,82864.0,0.09188102]
[1741866163497,0.1758999,82865.0,82864.0,0.21258232]
[1741866163893,0.1758999,82865.0,82864.0,0.09188102]
[1741866164685,0.18490132,82865.0,82864.0,0.09188102]
[1741866165091,0.14270132,82865.0,82864.0,0.21258232]
[1741866166495,0.14270132,82865.0,82864.0,0.09188102]
[1741866166887,0.22590132,82865.0,82864.0,0.09188102]
[1741866168100,0.22590132,82865.0,82864.0,0.21258232]
[1741866168492,0.22590132,82865.0,82864.0,0.09188102]
[1741866170699,0.14270132,82865.0,82864.0,0.21258232]
[1741866171792,0.03000142,82865.0,82864.0,0.21258232]
[1741866171992,0.021,82865.0,82864.0,0.21258232]
[1741866172197,0.021,82865.0,82864.0,0.22490069]
[1741866172501,0.021,82865.0,82864.0,0.23847283]
[1741866172699,0.021,82865.0,82864.0,0.23855642]
[1741866173895,0.1416999,82865.0,82864.0,0.23855642]
[1741866174695,0.1416999,82865.0,82864.0,0.23849276]
[1741866175194,0.15469414,82865.0,82864.0,0.23849276]
[1741866175589,0.15469414,82865.0,82864.0,0.1053895]
[1741866175794,0.23789414,82865.0,82864.0,0.2260908]
[1741866176099,0.23789414,82865.0,82864.0,0.09188102]
[1741866178404,0.23789414,82865.0,82864.0,0.10414691]
[1741866178902,0.23789414,82865.0,82864.0,0.11762444]
[1741866180398,0.15469414,82865.0,82864.0,0.23830589]
[1741866181106,0.15469414,82865.0,82864.0,0.23230589]
[1741866181601,0.03399424,82865.0,82864.0,0.22005985]
[1741866181910,0.03399424,82865.0,82864.0,0.23226517]
[1741866182090,0.03399424,82865.0,82864.0,0.21878764]
[1741866182503,0.15469414,82865.0,82864.0,0.21878764]
[1741866184400,0.15469414,82865.0,82864.0,0.20658232]
[1741866184596,0.23549414,82865.0,82864.0,0.20658232]
[1741866185394,0.15469414,82865.0,82864.0,0.20658232]
[1741866185597,0.15469414,82865.0,82864.0,0.21880527]
[1741866186604,0.15469414,82865.0,82864.0,0.09810397]
[1741866186907,0.23739414,82865.0,82864.0,0.09810397]
[1741866187102,0.23739414,82865.0,82864.0,0.08588102]
[1741866187401,0.23739414,82865.0,82864.0,0.20658232]
[1741866187608,0.23739414,82865.0,82864.0,0.21884578]
[1741866188197,0.15469414,82865.0,82864.0,0.21884578]
[1741866188613,0.15469414,82865.0,82864.0,0.23230878]
[1741866190308,0.23719414,82865.0,82864.0,0.23230878]
[1741866190901,0.15469414,82865.0,82864.0,0.23230878]
[1741866193296,0.19639414,82865.0,82864.0,0.09814448]
[1741866193502,0.19639414,82865.0,82864.0,0.11163312]
[1741866193503,0.23769414,82865.0,82864.0,0.11163312]
[1741866193706,0.23769414,82865.0,82864.0,0.09936966]
[1741866194206,0.23769414,82865.0,82864.0,0.08588102]
[1741866196103,0.23769414,82865.0,82864.0,0.00018102]
[1741866197604,0.23769414,82865.0,82864.0,0.13326063]
[1741866198005,0.23769414,82865.0,82864.0,0.02613015]
[1741866198804,0.23769414,82865.0,82864.0,0.14683145]
[1741866199011,0.23769414,82865.0,82864.0,0.23663145]
[1741866199211,0.23769414,82865.0,82864.0,0.23664479]
[1741866199406,0.23769414,82865.0,82864.0,0.11594349]
[1741866201512,0.23769414,82865.0,82864.0,0.23664479]
[1741866201918,0.03399424,82865.0,82864.0,0.25697176]
[1741866202103,0.15469414,82865.0,82864.0,0.25697176]
[1741866202916,0.03399424,82865.0,82864.0,0.2795893]
[1741866203116,0.15469414,82865.0,82864.0,0.2795893]
[1741866204311,0.1810333,82876.0,82875.0,0.060342]
[1741866204510,0.5818,82894.0,82878.0,0.120678]
[1741866204711,0.0603365,82884.0,82880.0,0.120678]
[1741866204917,0.23750843,82900.0,82880.0,0.120678]
[1741866204918,0.1,82900.0,82880.0,0.07934581]
[1741866205213,0.1,82900.0,82888.0,0.1206664]
[1741866205511,0.1,82900.0,82888.0,0.15391221]
[1741866205713,0.0603259,82898.0,82888.0,0.16748303]
[1741866205906,0.40711274,82889.0,82888.0,0.16748303]
[1741866206101,0.40711274,82889.0,82888.0,0.25758303]
[1741866206818,0.1206649,82889.0,82888.0,0.2799561]
[1741866207512,0.1206649,82889.0,82888.0,0.25758303]
[1741866208019,0.1206649,82889.0,82888.0,0.25858303]
[1741866208218,0.060331,82891.0,82890.0,0.1206635]
[1741866208414,0.060331,82891.0,82890.0,0.13305515]
[1741866208714,0.060331,82891.0,82890.0,0.13423432]
[1741866208917,0.060331,82891.0,82890.0,0.16773131]
[1741866209119,0.0603288,82895.0,82894.0,0.1206562]
[1741866209307,0.180985,82895.0,82894.0,0.13353957]
[1741866209913,0.0603288,82895.0,82894.0,0.13353957]
[1741866210220,0.0603288,82895.0,82894.0,0.13349148]
[1741866211010,0.0623288,82895.0,82894.0,0.1206562]
[1741866211810,0.002,82895.0,82894.0,0.1206562]
[1741866212010,0.002,82895.0,82894.0,0.14608402]
[1741866212215,0.00011973,82897.0,82894.0,0.04593009]
[1741866212412,0.1,82900.0,82899.0,0.1206504]
[1741866212612,0.01231439,82913.0,82912.0,0.1206315]
[1741866212911,0.1206222,82919.0,82912.0,0.01281786]
[1741866213115,0.1809355,82919.0,82918.0,0.1206227]
[1741866213306,0.19355552,82919.0,82918.0,0.1206227]
[1741866213705,0.1206242,82917.0,82916.0,0.0603121]
[1741866214408,0.1206286,82914.0,82911.0,0.0603162]
[1741866214608,0.1671315,82913.0,82912.0,0.1206315]
[1741866214805,0.2110315,82913.0,82912.0,0.1206315]
[1741866215713,0.0703127,82917.0,82912.0,0.1206315]
[1741866215916,0.0703127,82917.0,82910.0,0.0001809]
[1741866215917,0.01,82917.0,82910.0,0.0001809]
[1741866216121,0.1206329,82912.0,82911.0,0.2412528]
[1741866216517,0.1206329,82912.0,82910.0,0.0001809]
[1741866216518,0.0894,82912.0,82910.0,0.0001809]
[1741866216723,0.1206329,82911.0,82910.0,0.1208153]
[1741866217020,0.1206329,82911.0,82910.0,0.0001809]
[1741866217217,0.2100329,82911.0,82910.0,0.1208153]
[1741866218420,0.2200329,82911.0,82910.0,0.1208153]
[1741866219015,0.2200329,82911.0,82910.0,0.0001809]
[1741866220118,0.2200329,82911.0,82910.0,0.1208153]
[1741866220317,0.1306329,82911.0,82910.0,0.1658153]
[1741866221024,0.1306329,82911.0,82910.0,0.2131153]
[1741866221214,0.1306329,82911.0,82910.0,0.0924809]
[1741866221414,0.1723329,82911.0,82910.0,0.0924809]
[1741866225627,0.1723329,82911.0,82910.0,0.0001809]
[1741866227031,0.2169329,82911.0,82910.0,0.0001809]
[1741866227915,0.12068,82883.0,82882.0,0.19377387]
[1741866228115,0.12068,82883.0,82882.0,0.01289342]
[1741866228324,0.12068,82883.0,82873.0,0.0468]
[1741866228325,0.1206795,82879.0,82878.0,0.0468]
[1741866228523,0.1206795,82879.0,82878.0,0.18038297]
[1741866228715,0.13341171,82879.0,82878.0,0.167481]
[1741866229222,0.13341171,82879.0,82878.0,0.211881]
[1741866229729,0.1647795,82879.0,82878.0,0.211881]
[1741866229939,0.1627795,82879.0,82878.0,0.211881]
[1741866230234,0.1627795,82879.0,82878.0,0.22463601]
[1741866230424,0.1597795,82879.0,82878.0,0.22763601]
[1741866230928,0.0603366,82884.0,82883.0,0.1206719]
[1741866231524,0.1540366,82884.0,82883.0,0.0603354]
[1741866231730,0.1206751,82882.0,82881.0,0.0603376]
[1741866233331,0.1580366,82884.0,82881.0,0.07324065]
[1741866233633,0.1560366,82884.0,82883.0,0.1206737]
[1741866233828,0.1540366,82884.0,82883.0,0.13357675]
[1741866234027,0.1570366,82884.0,82883.0,0.13357675]
[1741866234429,0.1570366,82884.0,82883.0,0.14762797]
[1741866234629,0.1590366,82884.0,82883.0,0.14762797]
[1741866236631,0.1590366,82884.0,82883.0,0.13357675]
[1741866237726,0.1590366,82884.0,82883.0,0.1206737]
[1741866238436,0.1115366,82884.0,82883.0,0.1206737]
[1741866239231,0.1115366,82884.0,82883.0,0.1333202]
[1741866239534,0.1115366,82884.0,82883.0,0.13332013]
[1741866239737,0.1115366,82884.0,82883.0,0.14722561]
[1741866239933,0.1115366,82884.0,82883.0,0.1345791]
[1741866239934,0.005,82884.0,82883.0,0.1345791]
[1741866240141,0.046,82909.0,82903.0,0.1809571]
[1741866240438,0.1206494,82904.0,82903.0,0.1206397]
[1741866241231,0.13332576,82904.0,82903.0,0.1206397]
[1741866241434,0.17722576,82904.0,82903.0,0.1206397]
[1741866242441,0.17722576,82904.0,82903.0,0.0603198]
[1741866243026,0.05657636,82904.0,82896.0,0.0603269]
[1741866243234,0.0603259,82899.0,82897.0,0.01275976]
[1741866243435,0.1206547,82896.0,82895.0,0.0001809]
[1741866244935,0.1206547,82896.0,82895.0,0.1208371]
[1741866245238,0.003,82899.0,82898.0,0.1206518]
[1741866245537,0.1809735,82902.0,82901.0,0.1206475]
[1741866245841,0.002,82904.0,82899.0,0.0603245]
[1741866246044,0.1809494,82914.0,82913.0,0.1206242]
[1741866246341,0.0603132,82916.0,82915.0,0.1206271]
[1741866247336,0.0603132,82916.0,82913.0,0.0603143]
[1741866247531,0.1206329,82912.0,82911.0,0.1206323]
[1741866248135,0.071062,82922.0,82904.0,0.0603214]
[1741866248136,0.0107532,82922.0,82904.0,0.0603214]
[1741866248344,0.0603116,82918.0,82917.0,0.0603106]
[1741866248538,0.1516093,82921.0,82920.0,0.1206198]
[1741866248738,0.1206184,82921.0,82920.0,0.1206184]
[1741866250030,0.005,82921.0,82920.0,0.1206184]
[1741866250230,0.129777,82940.0,82919.0,0.0447]
[1741866250430,0.129777,82940.0,82939.0,0.1205922]
[1741866250643,0.08271809,82940.0,82939.0,0.13282166]
[1741866251144,0.20330879,82940.0,82939.0,0.13282166]
[1741866251333,0.1205922,82939.0,82938.0,0.0905]
[1741866251532,0.1683922,82939.0,82938.0,0.2110936]
[1741866251845,0.1205922,82939.0,82938.0,0.2110936]
[1741866252039,0.08471809,82940.0,82939.0,0.1205922]
[1741866252239,0.20530879,82940.0,82939.0,0.2117922]
[1741866252435,0.21030879,82940.0,82939.0,0.2117922]
[1741866252835,0.20530879,82940.0,82939.0,0.2117922]
[1741866253437,0.20530879,82940.0,82939.0,0.0912]
[1741866253636,0.1206024,82933.0,82932.0,0.2129984]
[1741866253837,0.1206024,82933.0,82932.0,0.3335969]
[1741866254845,0.0465,82933.0,82932.0,0.3335969]
[1741866255047,0.0602977,82937.0,82932.0,0.3335969]
[1741866255341,0.003,82940.0,82933.0,0.0603001]
[1741866255534,0.003,82940.0,82939.0,0.1205922]
[1741866255940,0.1205878,82942.0,82938.0,0.048]
[1741866256141,0.1205878,82942.0,82941.0,0.1205893]
[1741866257237,0.0602925,82944.0,82943.0,0.1205864]
[1741866257436,0.05,82944.0,82943.0,0.1205864]
[1741866257941,0.1808469,82960.0,82959.0,0.0602812]
[1741866258148,0.120566,82958.0,82957.0,0.1205654]
[1741866258347,0.120566,82958.0,82951.0,0.0602873]
[1741866258348,0.1205689,82956.0,82955.0,0.1205683]
[1741866258550,0.1205689,82956.0,82955.0,0.1672683]
[1741866258740,0.1697689,82956.0,82955.0,0.1672683]
[1741866258936,0.1697675,82956.0,82955.0,0.1672683]
[1741866259442,0.1205733,82952.0,82951.0,0.1207556]
[1741866259844,0.1205723,82953.0,82952.0,0.1205704]
[1741866260045,0.1205723,82953.0,82952.0,0.2136704]
[1741866261938,0.1235723,82953.0,82952.0,0.2136704]
[1741866263045,0.003,82953.0,82951.0,0.0001809]
[1741866263247,0.2189733,82952.0,82951.0,0.1207556]
[1741866263946,0.2189733,82952.0,82951.0,0.2186556]
[1741866264143,0.2189733,82952.0,82951.0,0.0980809]
[1741866264842,0.2189733,82952.0,82951.0,0.0001809]
[1741866265040,0.0603048,82928.0,82925.0,0.0479]
[1741866265247,0.1206096,82927.0,82926.0,0.1693111]
[1741866265549,0.2135096,82927.0,82926.0,0.1693111]
[1741866265751,0.2135096,82927.0,82926.0,0.2172111]
[1741866266252,0.2135096,82927.0,82926.0,0.0479]
[1741866266450,0.2135096,82927.0,82926.0,0.1685111]
[1741866266650,0.2135096,82927.0,82926.0,0.1695111]
[1741866268041,0.22629691,82927.0,82926.0,0.0489]
[1741866268439,0.22629691,82927.0,82926.0,0.003]
[1741866268953,0.15528731,82927.0,82908.0,0.21532107]
[1741866269135,0.1206213,82919.0,82917.0,0.1206237]
[1741866269337,0.1206213,82919.0,82918.0,0.0928809]
[1741866270154,0.2157213,82919.0,82918.0,0.0928809]
[1741866270653,0.2157213,82919.0,82918.0,0.0001809]
[1741866271156,0.2167213,82919.0,82918.0,0.0001809]
[1741866271546,0.2177213,82919.0,82918.0,0.0001809]
[1741866272549,0.3677213,82919.0,82918.0,1e-07]
[1741866274947,0.22686884,82919.0,82918.0,1e-07]
[1741866275845,0.10624754,82919.0,82902.0,0.0459601]
[1741866276050,0.1206533,82897.0,82896.0,0.0464]
[1741866277049,0.2133533,82897.0,82896.0,0.0464]
[1741866277751,0.2133533,82897.0,82896.0,0.0514]
[1741866277752,0.2093533,82897.0,82896.0,0.0514]
[1741866278553,0.2215702,82897.0,82896.0,0.0514]
[1741866278747,0.2215702,82897.0,82896.0,0.0564]
[1741866279152,0.2215702,82897.0,82896.0,0.1025]
[1741866282055,0.1079169,82897.0,82888.0,0.0001809]
[1741866282262,0.1206635,82890.0,82889.0,0.0454]
[1741866282464,0.1206635,82890.0,82889.0,0.0937]
[1741866283167,0.2125635,82890.0,82889.0,0.0937]
[1741866283951,0.2135635,82890.0,82889.0,0.0987]
[1741866284157,0.2145635,82890.0,82889.0,0.0987]
[1741866284361,0.1226635,82890.0,82889.0,0.0987]
[1741866286166,0.1226635,82890.0,82889.0,0.2193649]
[1741866286564,0.002,82890.0,82889.0,0.2193649]
[1741866286767,0.1226635,82890.0,82889.0,0.2193649]
[1741866286959,0.002,82890.0,82889.0,0.2193649]
[1741866287260,0.1226635,82890.0,82889.0,0.2193649]
[1741866291962,0.1226635,82890.0,82889.0,0.0987]
[1741866292373,0.2163635,82890.0,82889.0,0.0987]
[1741866293367,0.2153635,82890.0,82889.0,0.0987]
[1741866293668,0.2153635,82890.0,82889.0,0.0937]
[1741866293873,0.2163635,82890.0,82889.0,0.0937]
[1741866294169,0.2153635,82890.0,82889.0,0.0937]
[1741866294373,0.2213635,82890.0,82889.0,0.0937]
[1741866296366,0.1730635,82890.0,82889.0,0.2143649]
[1741866296562,0.1276635,82890.0,82889.0,0.2143649]
[1741866297571,0.1276635,82890.0,82889.0,0.0937]
[1741866297782,0.1752635,82890.0,82889.0,0.2143649]
[1741866298269,0.1752635,82890.0,82889.0,0.0937]
[1741866298771,0.1752635,82890.0,82889.0,0.2143649]
[1741866299078,0.1276635,82890.0,82889.0,0.2143649]
[1741866299374,0.1246635,82890.0,82889.0,0.2143649]
[1741866299574,0.1226635,82890.0,82889.0,0.2143649]
[1741866299767,0.1246635,82890.0,82889.0,0.2143649]
[1741866300565,0.1236635,82890.0,82889.0,0.2143649]
[1741866300772,0.1226635,82890.0,82889.0,0.2143649]
[1741866300978,0.002,82890.0,82889.0,0.2143649]
[1741866301378,0.1226635,82890.0,82889.0,0.58678397]
[1741866301679,0.23,82890.0,82889.0,0.46611907]
[1741866301866,0.4937635,82890.0,82889.0,0.45418]
[1741866302063,0.4937635,82890.0,82889.0,0.36048]
[1741866302466,0.5231,82890.0,82888.0,0.0001809]
[1741866302775,0.5231,82890.0,82863.0,0.047]
[1741866302776,0.1206926,82870.0,82869.0,0.0962]
[1741866303771,0.1663926,82870.0,82869.0,0.0962]
[1741866303973,0.4737926,82870.0,82869.0,0.0962]
[1741866304483,0.48621942,82870.0,82869.0,0.0962]
[1741866304683,0.27242682,82870.0,82869.0,0.2168941]
[1741866304977,0.39311942,82870.0,82869.0,0.2168941]
[1741866305183,0.3806926,82870.0,82869.0,0.2168941]
[1741866305379,0.1206926,82870.0,82869.0,0.22905447]
[1741866305884,0.12968231,82870.0,82869.0,0.22905447]
[1741866306382,0.33968231,82870.0,82869.0,0.01216037]
[1741866306574,0.1206984,82866.0,82865.0,0.2159999]
[1741866306776,0.1206984,82866.0,82865.0,0.22814075]
[1741866307176,0.1206984,82866.0,82865.0,0.10744085]
[1741866307673,0.1664984,82866.0,82865.0,0.10744085]
[1741866307872,0.1664984,82866.0,82865.0,0.10837818]
[1741866308676,0.1664984,82866.0,82865.0,0.32528637]
[1741866309782,0.2764984,82866.0,82865.0,0.21790819]
[1741866310087,0.1664984,82866.0,82865.0,0.21790819]
[1741866310684,0.1664984,82866.0,82865.0,0.33860809]
[1741866311184,0.1206984,82866.0,82865.0,0.33860809]
[1741866311385,0.1206984,82866.0,82865.0,0.21790819]
[1741866311790,0.1670984,82866.0,82865.0,0.001]
[1741866312382,0.4470984,82866.0,82865.0,0.001]
[1741866312583,0.4170984,82866.0,82865.0,0.001]
[1741866312896,0.1670984,82866.0,82865.0,0.001]
[1741866313484,0.1670984,82866.0,82865.0,0.0968]
[1741866314877,0.4370984,82866.0,82865.0,0.0968]
[1741866315183,0.1206984,82866.0,82865.0,0.2174999]
[1741866315987,0.1663984,82866.0,82865.0,0.2174999]
[1741866316188,0.1663984,82866.0,82865.0,0.0968]
[1741866317790,0.4063984,82866.0,82865.0,0.0968]
[1741866317992,0.1663984,82866.0,82865.0,0.0968]
[1741866319194,0.1663984,82866.0,82865.0,0.2174999]
[1741866319586,0.1206984,82866.0,82865.0,0.2174999]
[1741866319781,0.1810457,82868.0,82867.0,0.120697]
[1741866320691,0.1206984,82866.0,82865.0,0.1571492]
[1741866321090,0.1196984,82866.0,82865.0,0.1561492]
[1741866321891,0.1196984,82866.0,82865.0,0.0958]
[1741866322095,0.2127984,82866.0,82865.0,0.0958]
[1741866322286,0.2127984,82866.0,82865.0,0.2164999]
[1741866323393,0.1681984,82866.0,82865.0,0.2164999]
[1741866324888,0.1681984,82866.0,82865.0,0.0958]
[1741866325095,0.2159984,82866.0,82865.0,0.0958]
[1741866325293,0.4259984,82866.0,82865.0,0.0958]
[1741866325496,0.1207043,82862.0,82861.0,0.0001809]
[1741866325689,0.3907043,82862.0,82861.0,0.0001809]
[1741866331109,0.1207043,82862.0,82861.0,0.0001809]
[1741866332414,0.1207043,82862.0,82861.0,0.2156866]
[1741866333307,0.1207043,82862.0,82861.0,0.0949809]
[1741866334500,0.2147043,82862.0,82861.0,0.0949809]
[1741866334898,0.2147043,82862.0,82861.0,0.0001809]
[1741866337100,0.1207232,82849.0,82848.0,0.0464]
[1741866337409,0.1207232,82849.0,82848.0,0.0914]
[1741866338702,0.1207232,82849.0,82848.0,0.045]
[1741866338901,0.1207334,82842.0,82841.0,0.0916]
[1741866339103,0.1207334,82842.0,82841.0,0.0468]
[1741866340108,0.1665334,82842.0,82841.0,0.0468]
[1741866340316,0.2129334,82842.0,82841.0,0.0935]
[1741866340701,0.1665334,82842.0,82841.0,0.0935]
[1741866340902,0.1675334,82842.0,82841.0,0.0935]
[1741866341106,0.1685334,82842.0,82841.0,0.0935]
[1741866341411,0.13427518,82842.0,82841.0,0.2142349]
[1741866341710,0.13427518,82842.0,82841.0,0.0935]
[1741866341900,0.13327518,82842.0,82841.0,0.0935]
[1741866342102,0.13327518,82842.0,82841.0,0.2142349]
[1741866343510,0.13327518,82842.0,82841.0,0.0935]
[1741866343709,0.17937518,82842.0,82841.0,0.2142349]
[1741866344206,0.17937518,82842.0,82841.0,0.0935]
[1741866346115,0.22727518,82842.0,82841.0,0.2142349]
[1741866346313,0.22727518,82842.0,82841.0,0.0935]
[1741866347012,0.22727518,82842.0,82841.0,0.2142349]
[1741866347404,0.22727518,82842.0,82841.0,0.0935]
[1741866348317,0.49727518,82842.0,82841.0,0.0935]
[1741866348501,0.22727518,82842.0,82841.0,0.0935]
[1741866348701,0.46727518,82842.0,82841.0,0.0935]
[1741866348911,0.50727518,82842.0,82841.0,0.0935]
[1741866349902,0.22727518,82842.0,82841.0,0.0935]
[1741866350617,0.18117518,82842.0,82841.0,0.0935]
[1741866351409,0.13327518,82842.0,82841.0,0.0935]
[1741866351808,0.39327518,82842.0,82841.0,0.0935]
[1741866352012,0.18027518,82842.0,82841.0,0.0935]
[1741866352228,0.22517518,82842.0,82841.0,0.0935]
[1741866352717,0.22517518,82842.0,82841.0,0.0467]
[1741866353013,0.22517518,82842.0,82840.0,0.00018102]
[1741866353014,0.1207349,82841.0,82840.0,0.00018102]
[1741866353218,0.4107349,82841.0,82840.0,0.00018102]
[1741866353426,0.4834349,82841.0,82840.0,0.00018102]
[1741866354513,0.1207611,82823.0,82822.0,0.21690819]
[1741866355719,0.1217611,82823.0,82822.0,0.21690819]
[1741866356322,0.1217611,82823.0,82822.0,0.31340819]
[1741866356823,0.1227611,82823.0,82822.0,0.31340819]
[1741866357210,0.1722611,82823.0,82822.0,0.31340819]
[1741866357521,0.1227611,82823.0,82822.0,0.31340819]
[1741866357926,0.3927611,82823.0,82822.0,0.31340819]
[1741866358225,0.1227611,82823.0,82822.0,0.0965]
[1741866358425,0.2210611,82823.0,82822.0,0.0965]
[1741866359223,0.2300651,82823.0,82822.0,0.0965]
[1741866359820,0.4800651,82823.0,82822.0,0.0965]
[1741866360222,0.4800651,82823.0,82822.0,0.0487]
[1741866360424,0.1207713,82816.0,82815.0,0.0932]
[1741866360611,0.4007713,82816.0,82815.0,0.0932]
[1741866361428,0.4950713,82816.0,82815.0,0.0932]
[1741866361618,0.50744172,82816.0,82815.0,0.0932]
[1741866362128,0.1207873,82805.0,82804.0,0.21690819]
[1741866362512,0.1207873,82805.0,82804.0,0.33769699]
[1741866363224,0.120785,82807.0,82806.0,0.1207844]
[1741866363616,0.360785,82807.0,82806.0,0.0899]
[1741866363819,0.120785,82807.0,82806.0,0.0899]
[1741866365323,0.1207787,82811.0,82806.0,0.0899]
[1741866365626,0.1811709,82811.0,82810.0,0.1207771]
[1741866366019,0.00018113,82813.0,82812.0,0.1207771]
[1741866366216,0.12095683,82813.0,82812.0,0.1207771]
[1741866366518,0.12095683,82813.0,82812.0,0.2110771]
[1741866367226,0.12095683,82813.0,82812.0,0.0903]
[1741866367811,0.16735683,82813.0,82812.0,0.0903]
[1741866368212,0.12095683,82813.0,82812.0,0.2110771]
[1741866370927,0.00018113,82813.0,82812.0,0.2110771]
[1741866371627,0.12095683,82813.0,82812.0,0.2110771]
[1741866377722,0.00018113,82813.0,82812.0,0.2110771]
[1741866378122,0.12095683,82813.0,82812.0,0.2110771]
[1741866378429,0.00018113,82813.0,82812.0,0.2110771]
[1741866383530,0.0603702,82838.0,82812.0,0.0903]
[1741866383730,0.165848,82832.0,82831.0,0.1207494]
[1741866383921,0.165848,82832.0,82831.0,0.2619494]
[1741866384121,0.0018119,82833.0,82832.0,0.120748]
[1741866384326,0.01420165,82833.0,82832.0,0.120748]
[1741866384636,0.0018119,82833.0,82832.0,0.216748]
[1741866385625,0.0018119,82833.0,82832.0,0.096]
[1741866385626,0.1225584,82833.0,82832.0,0.096]
[1741866385825,0.1225584,82833.0,82832.0,0.049]
[1741866386127,0.1255584,82833.0,82832.0,0.169748]
[1741866386635,0.2222584,82833.0,82832.0,0.169748]
[1741866387031,0.2222584,82833.0,82832.0,0.049]
[1741866387228,0.2262584,82833.0,82832.0,0.049]
[1741866387531,0.1207582,82825.0,82824.0,0.00018113]
[1741866388238,0.1207582,82825.0,82824.0,0.12094073]
[1741866388631,0.2174582,82825.0,82824.0,0.12094073]
[1741866388825,0.2184582,82825.0,82824.0,0.16704073]
[1741866389229,0.2194582,82825.0,82824.0,0.16704073]
[1741866389540,0.2194582,82825.0,82824.0,0.12094073]
[1741866390133,0.2194582,82825.0,82824.0,0.16704073]
[1741866392244,0.2194582,82825.0,82824.0,0.04628113]
[1741866392743,0.2194582,82825.0,82824.0,0.16704073]
[1741866393237,0.2194582,82825.0,82824.0,0.21324073]
[1741866395749,0.2194582,82825.0,82824.0,0.09248113]
[1741866396744,0.2194582,82825.0,82824.0,0.00018113]
[1741866396945,0.4994582,82825.0,82824.0,0.00018113]
[1741866398539,0.4994582,82825.0,82824.0,0.09888113]
[1741866400846,0.002,82825.0,82824.0,0.21964073]
[1741866402451,0.1227582,82825.0,82824.0,0.21964073]
[1741866404748,0.1227582,82825.0,82824.0,0.43654892]
[1741866406946,0.002,82825.0,82824.0,0.43654892]
[1741866407152,0.002,82825.0,82824.0,0.21964073]
[1741866407547,0.002,82825.0,82824.0,0.23216777]
[1741866408855,0.002,82825.0,82824.0,0.24405123]
[1741866410958,0.002,82825.0,82824.0,0.23216777]
[1741866412459,0.1227582,82825.0,82824.0,0.21964073]
[1741866413152,0.2130582,82825.0,82824.0,0.21964073]
[1741866414453,0.22552792,82825.0,82824.0,0.00018113]
[1741866414656,0.50552792,82825.0,82824.0,0.00018113]
[1741866415864,0.65552792,82825.0,82824.0,0.00018113]
[1741866416163,0.1207684,82818.0,82817.0,0.28921092]
[1741866416362,0.4007684,82818.0,82817.0,0.28921092]
[1741866417056,0.4900684,82818.0,82817.0,0.28921092]
[1741866417466,0.4900684,82818.0,82811.0,0.1207782]
[1741866417657,0.0603867,82815.0,82809.0,0.16620233]
[1741866417978,0.12078,82810.0,82809.0,0.16620233]